[Event "European Online Club-ch-E 2021"]
[Site "Online"]
[Date "2021.03.27"]
[Round "8.14"]
[White "Chukavin, Kirill"]
[Black "Roiz, Michael"]
[Result "1/2-1/2"]
[ECO "C07"]
[WhiteElo "2384"]
[BlackElo "2579"]
[Annotator "ChessBase"]
[PlyCount "104"]
[EventDate "2021.03.27"]
[EventType "team-tourn"]
[EventCountry "NET"]
[SourceTitle "playchess.com"]
[Source "ChessBase"]
[SourceQuality "1"]
[TimeControl "900+5"]

1. e4 {[%emt 0:00:00]} e6 {[%emt 0:00:05]} 2. d4 {[%emt 0:00:03]} d5 {[%emt 0:00:02]} 3. Nd2 {[%emt 0:00:01]} a6 {[%emt 0:00:10]} 4. Ngf3 {[%emt 0:00:07]} c5 {[%emt 0:00:02]} 5. dxc5 {[%emt 0:00:20]} Bxc5 {[%emt 0:00:03]} 6. Bd3 {[%emt 0:00:08]} Nc6 {[%emt 0:00:01]} 7. O-O {[%emt 0:00:24]} Nf6 {[%emt 0:00:02]} 8. Qe2 {[%emt 0:00:27]} Qc7 {[%emt 0:00:36]} 9. exd5 {[%emt 0:02:24]} Nxd5 {[%emt 0:00:03]} 10. Ne4 {[%emt 0:00:02]} Be7 {[%emt 0:00:25]} 11. Bc4 {[%emt 0:01:13]} O-O {[%emt 0:00:35]} 12. Bg5 {[%emt 0:00:24]} Bxg5 {[%emt 0:01:45]} 13. Nexg5 {[%emt 0:00:16]} h6 {[%emt 0:00:14]} 14. Ne4 {[%emt 0:00:06]} Nce7 {[%emt 0:00:12]} 15. Bb3 {[%emt 0:00:25]} b6 {[%emt 0:00:08]} 16. Bxd5 {[%emt 0:03:51]} Nxd5 {[%emt 0:00:06]} 17. c4 {[%emt 0:01:21]} Nf4 {[%emt 0:00:10]} 18. Qe3 {[%emt 0:00:03]} Bb7 {[%emt 0:00:12]} 19. Rac1 {[%emt 0:00:24]} Rac8 {[%emt 0:01:55]} 20. Rfd1 {[%emt 0:00:25]} Rfd8 {[%emt 0:00:02]} 21. b3 {[%emt 0:00:25]} e5 {[%emt 0:00:26]} 22. Nc3 {[%emt 0:00:24]} f6 {[%emt 0:00:12]} 23. Ne2 {[%emt 0:01:03]} Ne6 {[%emt 0:00:18]} 24. Nh4 {[%emt 0:00:09]} Rxd1+ {[%emt 0:00:55]} 25. Rxd1 {[%emt 0:00:02]} Rd8 {[%emt 0:00:01]} 26. Rd2 {[%emt 0:00:29]} Bc8 {[%emt 0:03:50]} 27. Rd3 {[%emt 0:00:59]} Nc5 {[%emt 0:00:17]} 28. Rxd8+ {[%emt 0:00:14]} Qxd8 {[%emt 0:00:01]} 29. Nc3 {[%emt 0:00:02]} a5 {[%emt 0:00:42]} 30. h3 {[%emt 0:00:41]} Be6 {[%emt 0:00:25]} 31. Nf3 {[%emt 0:00:12]} Kf7 {[%emt 0:00:17]} 32. Qd2 {[%emt 0:00:07]} Qxd2 {[%emt 0:00:26]} 33. Nxd2 {[%emt 0:00:02]} f5 {[%emt 0:00:22]} 34. f3 {[%emt 0:00:02]} Ke7 {[%emt 0:00:14]} 35. Kf2 {[%emt 0:00:01]} g5 {[%emt 0:00:01]} 36. g4 {[%emt 0:00:29]} Kd6 {[%emt 0:00:22]} 37. Ke3 {[%emt 0:00:08]} Kc6 {[%emt 0:00:20]} 38. a3 {[%emt 0:00:08]} Nd7 {[%emt 0:00:13]} 39. b4 {[%emt 0:00:06]} axb4 {[%emt 0:00:02]} 40. axb4 {[%emt 0:00:01]} Nf6 {[%emt 0:00:01]} 41. Kd3 {[%emt 0:00:10]} h5 {[%emt 0:00:03]} 42. Ke3 {[%emt 0:00:07]} hxg4 {[%emt 0:00:24]} 43. hxg4 {[%emt 0:00:02]} fxg4 {[%emt 0:00:01]} 44. fxg4 {[%emt 0:00:04]} Nxg4+ {[%emt 0:00:01]} 45. Ke4 {[%emt 0:00:02]} Kd6 {[%emt 0:00:06]} 46. Nb5+ {[%emt 0:00:01]} Ke7 {[%emt 0:00:02]} 47. c5 {[%emt 0:00:07]} bxc5 {[%emt 0:00:01]} 48. bxc5 {[%emt 0:00:02]} Bd7 {[%emt 0:00:41]} 49. Na7 {[%emt 0:00:01]} Ke6 {[%emt 0:00:58]} 50. c6 {[%emt 0:00:08]} Nf6+ {[%emt 0:00:02]} 51. Kd3 {[%emt 0:00:09]} e4+ {[%emt 0:00:12]} 52. Kd4 {[%emt 0:00:05]} e3 {[%emt 0:00:13]} 1/2-1/2

[Event "European Online Club-ch-E 2021"]
[Site "Online"]
[Date "2021.03.27"]
[Round "8.15"]
[White "Postny, Evgeny"]
[Black "Kukk, Sander"]
[Result "1-0"]
[ECO "E91"]
[WhiteElo "2605"]
[BlackElo "2230"]
[Annotator "ChessBase"]
[PlyCount "72"]
[EventDate "2021.03.27"]
[EventType "team-tourn"]
[EventCountry "NET"]
[SourceTitle "playchess.com"]
[Source "ChessBase"]
[SourceQuality "1"]
[TimeControl "900+5"]

1. d4 {[%emt 0:00:00]} g6 {[%emt 0:00:07]} 2. c4 {[%emt 0:00:04]} Bg7 {[%emt 0:00:01]} 3. Nf3 {[%emt 0:00:02]} Nf6 {[%emt 0:00:05]} 4. Nc3 {[%emt 0:00:02]} O-O {[%emt 0:00:04]} 5. e4 {[%emt 0:00:01]} d6 {[%emt 0:00:04]} 6. Be2 {[%emt 0:00:02]} c5 {[%emt 0:00:26]} 7. O-O {[%emt 0:00:06]} Bg4 {[%emt 0:01:40]} 8. d5 {[%emt 0:00:09]} Nbd7 {[%emt 0:02:10]} 9. Ng5 {[%emt 0:00:09]} Bxe2 {[%emt 0:00:04]} 10. Qxe2 {[%emt 0:00:03]} h6 {[%emt 0:00:16]} 11. Nf3 {[%emt 0:00:03]} Ne8 {[%emt 0:00:45]} 12. Bf4 {[%emt 0:00:24]} Ne5 {[%emt 0:00:39]} 13. Nxe5 {[%emt 0:00:14]} dxe5 {[%emt 0:00:01]} 14. Be3 {[%emt 0:00:10]} b6 {[%emt 0:00:02]} 15. a3 {[%emt 0:00:08]} Nd6 {[%emt 0:00:24]} 16. b4 {[%emt 0:00:10]} Rc8 {[%emt 0:00:01]} 17. bxc5 {[%emt 0:00:08]} bxc5 {[%emt 0:00:00]} 18. Rfb1 {[%emt 0:00:38]} Qa5 {[%emt 0:00:16]} 19. Bd2 {[%emt 0:00:08]} Qa6 {[%emt 0:00:18]} 20. Nb5 {[%emt 0:00:02]} Qa4 {[%emt 0:00:08]} 21. Nxd6 {[%emt 0:00:37]} exd6 {[%emt 0:00:00]} 22. Qd3 {[%emt 0:01:03]} Rb8 {[%emt 0:00:16]} 23. h3 {[%emt 0:00:12]} Kh7 {[%emt 0:01:49]} 24. Kh2 {[%emt 0:00:56]} h5 {[%emt 0:00:04]} 25. Bg5 {[%emt 0:00:33]} f6 {[%emt 0:00:43]} 26. Be3 {[%emt 0:00:10]} Bh6 {[%emt 0:00:05]} 27. Bxh6 {[%emt 0:00:48]} Kxh6 {[%emt 0:00:00]} 28. h4 {[%emt 0:00:47]} Kg7 {[%emt 0:00:21]} 29. Qh3 {[%emt 0:00:26]} Qxc4 {[%emt 0:02:05]} 30. Rxb8 {[%emt 0:00:10]} Rxb8 {[%emt 0:00:14]} 31. Qd7+ {[%emt 0:00:02]} Kh6 {[%emt 0:00:01]} 32. Qxd6 {[%emt 0:00:05]} Re8 {[%emt 0:00:59]} 33. Re1 {[%emt 0:00:46]} Qd4 {[%emt 0:02:01]} 34. Qxf6 {[%emt 0:00:24]} c4 {[%emt 0:00:01]} 35. Re3 {[%emt 0:04:52]} Rc8 {[%emt 0:01:07]} 36. d6 {[%emt 0:00:37]} Rc6 {[%emt 0:00:33]} 1-0

[Event "European Online Club-ch-E 2021"]
[Site "Online"]
[Date "2021.03.27"]
[Round "8.16"]
[White "Valner, Uku"]
[Black "Steinberg, Nitzan"]
[Result "0-1"]
[ECO "B25"]
[WhiteElo "2296"]
[BlackElo "2553"]
[Annotator "ChessBase"]
[PlyCount "104"]
[EventDate "2021.03.27"]
[EventType "team-tourn"]
[EventCountry "NET"]
[SourceTitle "playchess.com"]
[Source "ChessBase"]
[SourceQuality "1"]
[TimeControl "900+5"]

1. e4 {[%emt 0:00:00]} c5 {[%emt 0:00:02]} 2. Nc3 {[%emt 0:00:03]} d6 {[%emt 0:00:03]} 3. g3 {[%emt 0:00:01]} g6 {[%emt 0:00:04]} 4. Bg2 {[%emt 0:00:02]} Bg7 {[%emt 0:00:01]} 5. d3 {[%emt 0:00:04]} Nc6 {[%emt 0:00:03]} 6. Be3 {[%emt 0:00:17]} e6 {[%emt 0:00:24]} 7. f4 {[%emt 0:00:12]} Nge7 {[%emt 0:00:07]} 8. Nf3 {[%emt 0:00:02]} Nd4 {[%emt 0:00:11]} 9. O-O {[%emt 0:00:07]} O-O {[%emt 0:00:07]} 10. e5 {[%emt 0:00:17]} Nef5 {[%emt 0:00:53]} 11. Bf2 {[%emt 0:00:02]} Nxf3+ {[%emt 0:00:14]} 12. Qxf3 {[%emt 0:00:10]} Nd4 {[%emt 0:00:17]} 13. Qd1 {[%emt 0:00:02]} dxe5 {[%emt 0:00:08]} 14. fxe5 {[%emt 0:00:00]} Bxe5 {[%emt 0:00:07]} 15. Na4 {[%emt 0:00:11]} Rb8 {[%emt 0:01:34]} 16. c3 {[%emt 0:01:09]} Nf5 {[%emt 0:01:57]} 17. Re1 {[%emt 0:02:04]} Bg7 {[%emt 0:00:37]} 18. Nxc5 {[%emt 0:01:17]} b6 {[%emt 0:00:04]} 19. Ne4 {[%emt 0:00:08]} e5 {[%emt 0:00:13]} 20. Qa4 {[%emt 0:01:15]} Qc7 {[%emt 0:00:54]} 21. Rad1 {[%emt 0:00:57]} Bd7 {[%emt 0:00:47]} 22. Qc4 {[%emt 0:01:18]} Rbc8 {[%emt 0:00:03]} 23. Qxc7 {[%emt 0:01:24]} Rxc7 {[%emt 0:00:01]} 24. g4 {[%emt 0:00:41]} Ne7 {[%emt 0:00:37]} 25. g5 {[%emt 0:01:02]} Nd5 {[%emt 0:01:15]} 26. Bg3 {[%emt 0:00:55]} Nf4 {[%emt 0:02:19]} 27. Nf6+ {[%emt 0:00:52]} Bxf6 {[%emt 0:00:05]} 28. gxf6 {[%emt 0:00:00]} Bg4 {[%emt 0:01:07]} 29. Rd2 {[%emt 0:00:22]} Rd7 {[%emt 0:00:05]} 30. Rxe5 {[%emt 0:01:17]} Nxd3 {[%emt 0:00:02]} 31. Re7 {[%emt 0:00:28]} Nc5 {[%emt 0:00:27]} 32. Rdxd7 {[%emt 0:00:54]} Nxd7 {[%emt 0:00:01]} 33. h3 {[%emt 0:00:03]} Be6 {[%emt 0:00:28]} 34. Bc6 {[%emt 0:00:02]} Nxf6 {[%emt 0:00:16]} 35. Rxa7 {[%emt 0:00:02]} Bxh3 {[%emt 0:00:22]} 36. Rb7 {[%emt 0:00:10]} Be6 {[%emt 0:00:17]} 37. a4 {[%emt 0:00:02]} Rd8 {[%emt 0:01:14]} 38. Rxb6 {[%emt 0:00:06]} Rd1+ {[%emt 0:00:08]} 39. Kf2 {[%emt 0:00:07]} Ra1 {[%emt 0:00:26]} 40. Rb8+ {[%emt 0:00:06]} Kg7 {[%emt 0:00:02]} 41. Be5 {[%emt 0:00:00]} g5 {[%emt 0:00:04]} 42. b4 {[%emt 0:00:02]} Kg6 {[%emt 0:00:06]} 43. a5 {[%emt 0:00:14]} Ng4+ {[%emt 0:00:01]} 44. Kg3 {[%emt 0:00:02]} Nxe5 {[%emt 0:00:01]} 45. Be4+ {[%emt 0:00:01]} f5 {[%emt 0:00:04]} 46. Rb6 {[%emt 0:00:03]} fxe4 {[%emt 0:00:14]} 47. Rxe6+ {[%emt 0:00:02]} Kf5 {[%emt 0:00:01]} 48. Re7 {[%emt 0:00:02]} Ra3 {[%emt 0:00:07]} 49. b5 {[%emt 0:00:02]} Rxa5 {[%emt 0:00:05]} 50. b6 {[%emt 0:00:02]} Rb5 {[%emt 0:00:04]} 51. b7 {[%emt 0:00:02]} Rb3 {[%emt 0:00:08]} 52. Rc7 {[%emt 0:00:04]} h5 {[%emt 0:00:07]} 0-1

[Event "European Online Club-ch-E 2021"]
[Site "Online"]
[Date "2021.03.27"]
[Round "8.17"]
[White "Chatalbashev, Boris"]
[Black "Westerberg, Jonathan"]
[Result "1-0"]
[ECO "E13"]
[WhiteElo "2530"]
[BlackElo "2534"]
[Annotator "ChessBase"]
[PlyCount "75"]
[EventDate "2021.03.27"]
[EventType "team-tourn"]
[EventCountry "NET"]
[SourceTitle "playchess.com"]
[Source "ChessBase"]
[SourceQuality "1"]
[TimeControl "900+5"]

1. d4 {[%emt 0:00:00]} Nf6 {[%emt 0:00:03]} 2. c4 {[%emt 0:00:02]} e6 {[%emt 0:00:01]} 3. Nc3 {[%emt 0:00:03]} Bb4 {[%emt 0:00:02]} 4. Nf3 {[%emt 0:00:02]} O-O {[%emt 0:00:08]} 5. Bg5 {[%emt 0:00:03]} h6 {[%emt 0:00:09]} 6. Bh4 {[%emt 0:00:04]} b6 {[%emt 0:00:04]} 7. e3 {[%emt 0:00:06]} Bb7 {[%emt 0:00:02]} 8. Bd3 {[%emt 0:00:03]} d6 {[%emt 0:00:07]} 9. O-O {[%emt 0:00:10]} Bxc3 {[%emt 0:00:01]} 10. bxc3 {[%emt 0:00:02]} Nbd7 {[%emt 0:00:02]} 11. Nd2 {[%emt 0:00:10]} e5 {[%emt 0:01:19]} 12. f4 {[%emt 0:00:16]} exf4 {[%emt 0:00:02]} 13. exf4 {[%emt 0:00:03]} Re8 {[%emt 0:00:11]} 14. Qc2 {[%emt 0:00:07]} Qe7 {[%emt 0:00:04]} 15. Rae1 {[%emt 0:00:16]} Qf8 {[%emt 0:00:02]} 16. Bf5 {[%emt 0:00:09]} Rxe1 {[%emt 0:00:18]} 17. Rxe1 {[%emt 0:00:03]} Re8 {[%emt 0:00:01]} 18. Qd1 {[%emt 0:00:20]} a5 {[%emt 0:00:13]} 19. Re2 {[%emt 0:00:25]} g6 {[%emt 0:00:18]} 20. Bh3 {[%emt 0:00:52]} Kg7 {[%emt 0:00:03]} 21. Qe1 {[%emt 0:00:13]} Rxe2 {[%emt 0:00:04]} 22. Qxe2 {[%emt 0:00:02]} Bc6 {[%emt 0:00:20]} 23. d5 {[%emt 0:00:53]} Ba4 {[%emt 0:00:59]} 24. Qe3 {[%emt 0:00:13]} Nc5 {[%emt 0:00:26]} 25. Qd4 {[%emt 0:02:20]} Qe7 {[%emt 0:00:30]} 26. g4 {[%emt 0:00:42]} g5 {[%emt 0:00:02]} 27. fxg5 {[%emt 0:00:12]} hxg5 {[%emt 0:00:02]} 28. Bxg5 {[%emt 0:00:04]} Qe1+ {[%emt 0:00:02]} 29. Nf1 {[%emt 0:00:48]} Qe5 {[%emt 0:00:02]} 30. Be3 {[%emt 0:00:36]} Nfe4 {[%emt 0:00:16]} 31. Ng3 {[%emt 0:02:52]} Nxg3 {[%emt 0:00:09]} 32. hxg3 {[%emt 0:00:04]} f6 {[%emt 0:00:01]} 33. Qf4 {[%emt 0:00:25]} Ne4 {[%emt 0:00:16]} 34. Qh6+ {[%emt 0:00:06]} Kf7 {[%emt 0:00:14]} 35. Qh7+ {[%emt 0:00:04]} Ke8 {[%emt 0:00:02]} 36. Qg8+ {[%emt 0:00:07]} Ke7 {[%emt 0:00:09]} 37. Qg7+ {[%emt 0:00:04]} Ke8 {[%emt 0:00:02]} 38. Bf4 {[%emt 0:00:22]} 1-0

[Event "European Online Club-ch-E 2021"]
[Site "Online"]
[Date "2021.03.27"]
[Round "8.18"]
[White "Arman, Deniz"]
[Black "Moreno Trujillo, Alejandro"]
[Result "1-0"]
[ECO "C13"]
[WhiteElo "2336"]
[BlackElo "2483"]
[Annotator "ChessBase"]
[PlyCount "51"]
[EventDate "2021.03.27"]
[EventType "team-tourn"]
[EventCountry "NET"]
[SourceTitle "playchess.com"]
[Source "ChessBase"]
[SourceQuality "1"]
[TimeControl "900+5"]

1. e4 {[%emt 0:00:00]} e6 {[%emt 0:00:06]} 2. d4 {[%emt 0:00:03]} d5 {[%emt 0:00:02]} 3. Nc3 {[%emt 0:00:01]} Nf6 {[%emt 0:00:04]} 4. Bg5 {[%emt 0:00:04]} dxe4 {[%emt 0:00:09]} 5. Nxe4 {[%emt 0:00:03]} Be7 {[%emt 0:00:02]} 6. Bxf6 {[%emt 0:00:17]} gxf6 {[%emt 0:00:02]} 7. Nf3 {[%emt 0:00:04]} b6 {[%emt 0:00:16]} 8. Bb5+ {[%emt 0:01:02]} c6 {[%emt 0:00:04]} 9. Bd3 {[%emt 0:01:12]} Bb7 {[%emt 0:00:08]} 10. Qe2 {[%emt 0:00:02]} Qc7 {[%emt 0:00:12]} 11. O-O-O {[%emt 0:00:24]} a6 {[%emt 0:00:22]} 12. Kb1 {[%emt 0:00:53]} Nd7 {[%emt 0:00:03]} 13. Rhe1 {[%emt 0:01:23]} b5 {[%emt 0:00:05]} 14. c4 {[%emt 0:01:15]} Nb6 {[%emt 0:00:53]} 15. Rc1 {[%emt 0:01:20]} b4 {[%emt 0:00:12]} 16. d5 {[%emt 0:01:52]} exd5 {[%emt 0:05:04]} 17. Nxf6+ {[%emt 0:00:28]} Kf8 {[%emt 0:00:24]} 18. Nxh7+ {[%emt 0:00:11]} Rxh7 {[%emt 0:00:02]} 19. Bxh7 {[%emt 0:00:03]} Nxc4 {[%emt 0:00:05]} 20. Bd3 {[%emt 0:00:12]} Nb6 {[%emt 0:00:24]} 21. Ne5 {[%emt 0:00:38]} Bf6 {[%emt 0:00:20]} 22. Qh5 {[%emt 0:00:27]} Re8 {[%emt 0:01:50]} 23. f4 {[%emt 0:00:28]} c5 {[%emt 0:00:23]} 24. Qh6+ {[%emt 0:00:30]} Bg7 {[%emt 0:00:11]} 25. Qxb6 {[%emt 0:00:03]} Bxe5 {[%emt 0:00:05]} 26. Qh6+ {[%emt 0:01:11]} 1-0

[Event "European Online Club-ch-E 2021"]
[Site "Online"]
[Date "2021.03.27"]
[Round "8.19"]
[White "Garrido Dominguez, Jesus"]
[Black "Cederstam Barsk, Carl"]
[Result "1-0"]
[ECO "B13"]
[WhiteElo "2413"]
[BlackElo "2366"]
[Annotator "NA"]
[PlyCount "103"]
[EventDate "2021.03.27"]
[EventType "team-tourn"]
[EventCountry "NET"]
[SourceTitle "playchess.com"]
[Source "ChessBase"]
[SourceQuality "1"]
[TimeControl "900+5"]

1. e4 {[%emt 0:00:00]} c6 {[%emt 0:00:04]} 2. d4 {[%emt 0:00:06]} d5 {[%emt 0:00:02]} 3. exd5 {[%emt 0:00:02]} cxd5 {[%emt 0:00:03]} 4. Bd3 {[%emt 0:00:01]} Nc6 {[%emt 0:00:04]} 5. c3 {[%emt 0:00:03]} Qc7 {[%emt 0:00:05]} 6. h3 {[%emt 0:00:04]} g6 {[%emt 0:00:05]} 7. Nf3 {[%emt 0:00:01]} Nf6 {[%emt 0:00:19]} 8. Na3 {[%emt 0:00:04]} a6 {[%emt 0:00:53]} 9. Nc2 {[%emt 0:00:03]} Bf5 {[%emt 0:00:09]} 10. Bg5 {[%emt 0:00:06]} Bxd3 {[%emt 0:00:18]} 11. Qxd3 {[%emt 0:00:03]} Ne4 {[%emt 0:00:04]} 12. Be3 {[%emt 0:00:05]} Bg7 {[%emt 0:00:18]} 13. O-O {[%emt 0:00:02]} O-O {[%emt 0:00:03]} 14. Rae1 {[%emt 0:00:02]} e6 {[%emt 0:02:10]} 15. Nd2 {[%emt 0:00:35]} Nd6 {[%emt 0:00:26]} 16. Bf4 {[%emt 0:00:11]} Qd7 {[%emt 0:00:37]} 17. Ne3 {[%emt 0:02:34]} Rad8 {[%emt 0:02:20]} 18. Nb3 {[%emt 0:00:21]} a5 {[%emt 0:01:46]} 19. Nc5 {[%emt 0:01:10]} Qc8 {[%emt 0:00:05]} 20. Bxd6 {[%emt 0:00:02]} Rxd6 {[%emt 0:00:03]} 21. Qb5 {[%emt 0:00:02]} Bxd4 {[%emt 0:04:43]} 22. Nxb7 {[%emt 0:03:21]} Rd7 {[%emt 0:00:03]} 23. Nxa5 {[%emt 0:00:05]} Bxe3 {[%emt 0:00:54]} 24. Nxc6 {[%emt 0:01:20]} Rb7 {[%emt 0:00:32]} 25. Rxe3 {[%emt 0:01:16]} Rxb5 {[%emt 0:00:02]} 26. Ne7+ {[%emt 0:00:02]} Kg7 {[%emt 0:00:01]} 27. Nxc8 {[%emt 0:00:01]} Rxc8 {[%emt 0:00:01]} 28. Re2 {[%emt 0:00:02]} Ra8 {[%emt 0:00:13]} 29. Ra1 {[%emt 0:00:09]} Rba5 {[%emt 0:00:14]} 30. a3 {[%emt 0:00:09]} Rb5 {[%emt 0:00:20]} 31. Kf1 {[%emt 0:00:09]} Rb3 {[%emt 0:00:06]} 32. Ke1 {[%emt 0:00:04]} Rab8 {[%emt 0:00:02]} 33. Ra2 {[%emt 0:00:04]} e5 {[%emt 0:00:13]} 34. Kd1 {[%emt 0:00:38]} d4 {[%emt 0:00:11]} 35. cxd4 {[%emt 0:00:20]} exd4 {[%emt 0:00:01]} 36. a4 {[%emt 0:00:03]} Ra8 {[%emt 0:00:16]} 37. Re5 {[%emt 0:00:56]} Kf6 {[%emt 0:00:06]} 38. Rd5 {[%emt 0:00:08]} Rb4 {[%emt 0:00:03]} 39. a5 {[%emt 0:00:04]} Ke6 {[%emt 0:00:02]} 40. Rc5 {[%emt 0:00:03]} Kd6 {[%emt 0:00:02]} 41. Rc1 {[%emt 0:00:02]} Rb5 {[%emt 0:00:05]} 42. a6 {[%emt 0:00:01]} Rb6 {[%emt 0:00:03]} 43. a7 {[%emt 0:00:02]} Rb7 {[%emt 0:00:04]} 44. Rca1 {[%emt 0:00:02]} Kd5 {[%emt 0:00:04]} 45. Kd2 {[%emt 0:00:03]} Kc4 {[%emt 0:00:05]} 46. Ra4+ {[%emt 0:00:05]} Kb3 {[%emt 0:00:03]} 47. R1a2 {[%emt 0:00:11]} Rd7 {[%emt 0:00:19]} 48. Kd3 {[%emt 0:00:06]} f5 {[%emt 0:00:01]} 49. Ra6 {[%emt 0:00:09]} g5 {[%emt 0:00:12]} 50. R2a5 {[%emt 0:00:05]} Rb7 {[%emt 0:00:06]} 51. Rxf5 {[%emt 0:00:11]} Kxb2 {[%emt 0:00:04]} 52. Rxg5 {[%emt 0:00:09]} 1-0

[Event "European Online Club-ch-E 2021"]
[Site "Online"]
[Date "2021.03.27"]
[Round "9.5"]
[White "Sirosh, Ilja"]
[Black "Chatalbashev, Boris"]
[Result "1/2-1/2"]
[ECO "E90"]
[WhiteElo "2400"]
[BlackElo "2530"]
[Annotator "ChessBase"]
[PlyCount "133"]
[EventDate "2021.03.27"]
[EventType "team-tourn"]
[EventCountry "NET"]
[SourceTitle "playchess.com"]
[Source "ChessBase"]
[SourceQuality "1"]
[TimeControl "900+5"]

1. d4 {[%emt 0:00:00]} Nf6 {[%emt 0:00:05]} 2. c4 {[%emt 0:00:02]} c5 {[%emt 0:00:08]} 3. d5 {[%emt 0:00:03]} g6 {[%emt 0:00:01]} 4. Nc3 {[%emt 0:00:03]} Bg7 {[%emt 0:00:02]} 5. e4 {[%emt 0:00:01]} d6 {[%emt 0:00:01]} 6. Bd3 {[%emt 0:00:03]} O-O {[%emt 0:00:03]} 7. h3 {[%emt 0:00:03]} e6 {[%emt 0:00:02]} 8. Nf3 {[%emt 0:00:03]} Na6 {[%emt 0:00:02]} 9. O-O {[%emt 0:00:20]} Nc7 {[%emt 0:00:02]} 10. Rb1 {[%emt 0:00:55]} exd5 {[%emt 0:00:13]} 11. exd5 {[%emt 0:00:04]} b5 {[%emt 0:00:03]} 12. Nxb5 {[%emt 0:00:16]} Nxb5 {[%emt 0:00:07]} 13. cxb5 {[%emt 0:00:02]} Bb7 {[%emt 0:00:12]} 14. Bc4 {[%emt 0:00:11]} a6 {[%emt 0:00:27]} 15. bxa6 {[%emt 0:01:28]} Bxa6 {[%emt 0:00:08]} 16. Qc2 {[%emt 0:01:50]} Bxc4 {[%emt 0:00:20]} 17. Qxc4 {[%emt 0:00:04]} Qa5 {[%emt 0:00:29]} 18. a3 {[%emt 0:00:24]} Rfe8 {[%emt 0:00:07]} 19. Bd2 {[%emt 0:00:16]} Qa6 {[%emt 0:00:32]} 20. Qxa6 {[%emt 0:02:52]} Rxa6 {[%emt 0:00:04]} 21. Bc3 {[%emt 0:00:38]} Nxd5 {[%emt 0:00:18]} 22. Bxg7 {[%emt 0:00:01]} Kxg7 {[%emt 0:00:02]} 23. Rfd1 {[%emt 0:00:01]} Nf4 {[%emt 0:00:26]} 24. Rd2 {[%emt 0:00:24]} c4 {[%emt 0:00:53]} 25. Kf1 {[%emt 0:03:00]} Nd3 {[%emt 0:02:05]} 26. Ne1 {[%emt 0:00:16]} Nc5 {[%emt 0:01:58]} 27. Rc2 {[%emt 0:00:29]} Nb3 {[%emt 0:02:34]} 28. Rd1 {[%emt 0:00:11]} Rc8 {[%emt 0:00:15]} 29. Nf3 {[%emt 0:00:10]} Rb6 {[%emt 0:00:16]} 30. Nd2 {[%emt 0:00:33]} Nxd2+ {[%emt 0:00:29]} 31. Rcxd2 {[%emt 0:00:02]} Rcc6 {[%emt 0:00:11]} 32. Rc1 {[%emt 0:00:09]} Rb3 {[%emt 0:00:10]} 33. Rcd1 {[%emt 0:01:14]} Rbb6 {[%emt 0:01:10]} 34. Rc1 {[%emt 0:00:02]} Kf6 {[%emt 0:00:26]} 35. Rd4 {[%emt 0:01:04]} Rxb2 {[%emt 0:00:08]} 36. Rcxc4 {[%emt 0:00:02]} Rxc4 {[%emt 0:00:11]} 37. Rxc4 {[%emt 0:00:00]} Ra2 {[%emt 0:00:06]} 38. Ra4 {[%emt 0:00:31]} Ke6 {[%emt 0:00:13]} 39. Ra5 {[%emt 0:00:13]} h5 {[%emt 0:00:12]} 40. h4 {[%emt 0:00:06]} d5 {[%emt 0:00:09]} 41. g3 {[%emt 0:00:01]} d4 {[%emt 0:00:09]} 42. Kg2 {[%emt 0:00:14]} Re2 {[%emt 0:01:46]} 43. Kf3 {[%emt 0:00:06]} Re1 {[%emt 0:00:02]} 44. Ra8 {[%emt 0:00:04]} Kd5 {[%emt 0:00:10]} 45. Rd8+ {[%emt 0:00:03]} Kc4 {[%emt 0:00:02]} 46. Rc8+ {[%emt 0:00:02]} Kb3 {[%emt 0:00:05]} 47. Rd8 {[%emt 0:00:02]} Kc3 {[%emt 0:00:02]} 48. Rc8+ {[%emt 0:00:06]} Kd2 {[%emt 0:00:03]} 49. Rc7 {[%emt 0:00:02]} d3 {[%emt 0:00:07]} 50. Rxf7 {[%emt 0:00:03]} Kd1 {[%emt 0:00:27]} 51. Rf6 {[%emt 0:00:19]} d2 {[%emt 0:00:02]} 52. Rxg6 {[%emt 0:00:01]} Re8 {[%emt 0:00:20]} 53. Rd6 {[%emt 0:00:10]} Ke1 {[%emt 0:00:03]} 54. g4 {[%emt 0:00:05]} hxg4+ {[%emt 0:00:36]} 55. Kxg4 {[%emt 0:00:02]} d1=Q+ {[%emt 0:00:03]} 56. Rxd1+ {[%emt 0:00:02]} Kxd1 {[%emt 0:00:01]} 57. h5 {[%emt 0:00:06]} Ke2 {[%emt 0:00:03]} 58. h6 {[%emt 0:00:03]} Kxf2 {[%emt 0:00:21]} 59. Kg5 {[%emt 0:00:01]} Kf3 {[%emt 0:00:06]} 60. h7 {[%emt 0:00:02]} Ke4 {[%emt 0:00:02]} 61. Kg6 {[%emt 0:00:02]} Kd5 {[%emt 0:00:02]} 62. Kf7 {[%emt 0:00:01]} Ra8 {[%emt 0:00:05]} 63. Kg7 {[%emt 0:00:02]} Ra7+ {[%emt 0:00:01]} 64. Kg6 {[%emt 0:00:03]} Ra8 {[%emt 0:00:02]} 65. Kg7 {[%emt 0:00:02]} Ra7+ {[%emt 0:00:01]} 66. Kg6 {[%emt 0:00:01]} Ra8 {[%emt 0:00:02]} 67. Kg7 {[%emt 0:00:01]} 1/2-1/2

[Event "European Online Club-ch-E 2021"]
[Site "Online"]
[Date "2021.03.27"]
[Round "9.6"]
[White "Moreno Trujillo, Alejandro"]
[Black "Chukavin, Kirill"]
[Result "1-0"]
[ECO "E04"]
[WhiteElo "2483"]
[BlackElo "2384"]
[Annotator "ChessBase"]
[PlyCount "47"]
[EventDate "2021.03.27"]
[EventType "team-tourn"]
[EventCountry "NET"]
[SourceTitle "playchess.com"]
[Source "ChessBase"]
[SourceQuality "1"]
[TimeControl "900+5"]

1. d4 {[%emt 0:00:00]} Nf6 {[%emt 0:00:03]} 2. c4 {[%emt 0:00:04]} e6 {[%emt 0:00:01]} 3. g3 {[%emt 0:00:03]} d5 {[%emt 0:00:03]} 4. Bg2 {[%emt 0:00:04]} dxc4 {[%emt 0:00:23]} 5. Nf3 {[%emt 0:00:04]} Bd7 {[%emt 0:00:04]} 6. Ne5 {[%emt 0:00:04]} Bc6 {[%emt 0:00:01]} 7. Nxc6 {[%emt 0:00:02]} Nxc6 {[%emt 0:00:01]} 8. e3 {[%emt 0:00:02]} Qd7 {[%emt 0:00:08]} 9. O-O {[%emt 0:00:05]} O-O-O {[%emt 0:00:06]} 10. Nd2 {[%emt 0:00:27]} e5 {[%emt 0:00:05]} 11. Nxc4 {[%emt 0:00:39]} exd4 {[%emt 0:00:05]} 12. Qb3 {[%emt 0:00:09]} Nd5 {[%emt 0:01:15]} 13. Bd2 {[%emt 0:00:30]} Bc5 {[%emt 0:00:16]} 14. Rac1 {[%emt 0:00:13]} Bb6 {[%emt 0:03:32]} 15. e4 {[%emt 0:01:36]} Nf6 {[%emt 0:00:39]} 16. a4 {[%emt 0:00:02]} Bc5 {[%emt 0:03:23]} 17. Na5 {[%emt 0:01:57]} Nxa5 {[%emt 0:00:55]} 18. Bxa5 {[%emt 0:00:04]} b6 {[%emt 0:00:01]} 19. Bd2 {[%emt 0:00:16]} Rhe8 {[%emt 0:01:42]} 20. Qd3 {[%emt 0:00:23]} a5 {[%emt 0:01:48]} 21. Bxa5 {[%emt 0:00:44]} Qxa4 {[%emt 0:00:02]} 22. Bd2 {[%emt 0:00:31]} Kb8 {[%emt 0:01:03]} 23. b4 {[%emt 0:00:32]} Bf8 {[%emt 0:00:28]} 24. Qc4 {[%emt 0:00:43]} 1-0